bitfinex/quotes_BTCUSD_20250428
["timestamp","ask_amount","ask_price","bid_price","bid_amount"]
[1745812804563,0.00488327,94029.0,94028.0,0.64995099]
[1745812805417,0.00488327,94029.0,94028.0,0.65495099]
[1745812805772,0.00488327,94029.0,94028.0,0.65895099]
[1745812810457,0.00488327,94029.0,94028.0,0.56843099]
[1745812810659,0.00488327,94029.0,94028.0,0.11589014]
[1745812811186,0.00488327,94029.0,94028.0,0.13043099]
[1745812811543,0.00488327,94029.0,94028.0,0.12543099]
[1745812811743,0.00488327,94029.0,94028.0,0.12443099]
[1745812811949,0.00488327,94029.0,94028.0,0.12743099]
[1745812812362,0.00488327,94029.0,94028.0,0.12443099]
[1745812812571,0.00488327,94029.0,94028.0,0.51263099]
[1745812812981,0.00488327,94029.0,94028.0,0.51363099]
[1745812817881,0.00488327,94029.0,94028.0,0.51850627]
[1745812823102,0.00488327,94029.0,94028.0,0.56390627]
[1745812823501,0.00488327,94029.0,94028.0,0.56790627]
[1745812823730,0.00488327,94029.0,94028.0,0.56490627]
[1745812825225,0.00488327,94029.0,94028.0,0.56890627]
[1745812826471,0.00488327,94029.0,94028.0,0.56490627]
[1745812826686,0.00488327,94029.0,94028.0,0.56990627]
[1745812826893,0.00488327,94029.0,94028.0,0.56590627]
[1745812827365,0.00488327,94029.0,94028.0,0.57090627]
[1745812833950,0.00488327,94029.0,94028.0,0.66138627]
[1745812839605,0.0004243,94041.0,94032.0,0.6136344]
[1745812839815,0.0004243,94041.0,94032.0,0.7253065]
[1745812840906,0.0004243,94041.0,94032.0,0.7303065]
[1745812841814,0.0004243,94041.0,94032.0,0.7353065]
[1745812842463,0.0004243,94041.0,94032.0,1.1459065]
[1745812843521,0.0004243,94041.0,94032.0,1.2363465]
[1745812844868,0.0004243,94041.0,94032.0,1.0851381]
[1745812845253,0.0004243,94041.0,94032.0,0.82932894]
[1745812845457,0.0004243,94041.0,94032.0,0.4147454]
[1745812845660,0.0004243,94041.0,94032.0,0.34876134]
[1745812845860,0.0004243,94041.0,94032.0,0.34403963]
[1745812847327,0.0004243,94041.0,94032.0,0.35858048]
[1745812848105,0.0004243,94041.0,94032.0,0.42456454]
[1745812848459,0.0004243,94041.0,94032.0,0.47346454]
[1745812849408,6.516e-05,94033.0,94032.0,0.47346454]
[1745812849869,6.516e-05,94033.0,94032.0,0.81346454]
[1745812851555,6.516e-05,94033.0,94032.0,0.44689014]
[1745812851788,6.516e-05,94033.0,94032.0,0.53733014]
[1745812852007,6.516e-05,94033.0,94032.0,0.55187099]
[1745812856479,6.516e-05,94033.0,94032.0,0.60180381]
[1745812856696,6.516e-05,94033.0,94032.0,0.64740381]
[1745812856988,6.516e-05,94033.0,94032.0,0.69560381]
[1745812858164,6.516e-05,94033.0,94032.0,0.69960381]
[1745812858381,6.516e-05,94033.0,94032.0,0.69560381]
[1745812858760,6.516e-05,94033.0,94032.0,0.70360381]
[1745812859158,6.516e-05,94033.0,94032.0,0.70160381]
[1745812859584,6.516e-05,94033.0,94032.0,0.70560381]
[1745812859940,6.516e-05,94033.0,94032.0,0.65567099]
[1745812863208,6.516e-05,94033.0,94032.0,0.70567029]
[1745812868312,6.516e-05,94033.0,94032.0,0.61187029]
[1745812868516,6.516e-05,94033.0,94032.0,0.56187099]
[1745812869661,6.516e-05,94033.0,94032.0,0.54729014]
[1745812869818,6.516e-05,94033.0,94032.0,0.56183099]
[1745812870221,0.04586516,94033.0,94032.0,0.54729014]
[1745812870784,0.04586516,94033.0,94032.0,0.56183099]
[1745812873258,6.516e-05,94033.0,94032.0,0.56183099]
[1745812877304,6.516e-05,94033.0,94032.0,0.69619818]
[1745812877775,6.516e-05,94033.0,94032.0,0.66153029]
[1745812877964,6.516e-05,94033.0,94032.0,0.65553029]
[1745812878445,6.516e-05,94033.0,94032.0,0.65953029]
[1745812880474,6.516e-05,94033.0,94032.0,0.83836926]
[1745812883150,6.516e-05,94033.0,94032.0,0.91797357]
[1745812884746,6.516e-05,94033.0,94032.0,0.83836926]
[1745812889654,6.516e-05,94033.0,94032.0,0.95056926]
[1745812889858,6.516e-05,94033.0,94032.0,0.78866926]
[1745812891997,6.516e-05,94033.0,94032.0,0.39866996]
[1745812892173,6.516e-05,94033.0,94032.0,0.20529014]
[1745812892381,0.04516516,94033.0,94032.0,0.54741667]
[1745812892677,0.04516516,94033.0,94032.0,0.54529014]
[1745812892882,6.516e-05,94033.0,94032.0,0.54529014]
[1745812893081,6.516e-05,94033.0,94032.0,0.55583099]
[1745812893482,6.516e-05,94033.0,94032.0,0.55883099]
[1745812894068,6.516e-05,94033.0,94032.0,0.55483099]
[1745812894271,6.516e-05,94033.0,94032.0,0.55383099]
[1745812894471,6.516e-05,94033.0,94032.0,0.55683099]
[1745812894675,6.516e-05,94033.0,94032.0,0.55483099]
[1745812895120,6.516e-05,94033.0,94032.0,0.55783099]
[1745812896538,6.516e-05,94033.0,94032.0,0.54329014]
[1745812896774,6.516e-05,94033.0,94032.0,0.55783099]
[1745812896965,6.516e-05,94033.0,94032.0,0.54329014]
[1745812897141,6.516e-05,94033.0,94032.0,0.54029014]
[1745812897508,6.516e-05,94033.0,94032.0,0.55483099]
[1745812897704,6.516e-05,94033.0,94032.0,0.55683099]
[1745812897954,6.516e-05,94033.0,94032.0,0.55383099]
[1745812899128,6.516e-05,94033.0,94032.0,0.55683099]
[1745812899331,6.516e-05,94033.0,94032.0,0.6217599]
[1745812903715,6.516e-05,94033.0,94032.0,0.6219199]
[1745812905754,6.516e-05,94033.0,94032.0,0.6719192]
[1745812907984,6.516e-05,94033.0,94032.0,0.60699029]
[1745812908616,6.516e-05,94033.0,94032.0,0.78582926]
[1745812909415,0.00036244,94035.0,94034.0,0.06454015]
[1745812909615,0.00036244,94035.0,94034.0,0.51355652]
[1745812909817,0.00036244,94035.0,94034.0,0.51143029]
[1745812911315,0.00036244,94035.0,94034.0,0.51343029]
[1745812911432,0.00036244,94035.0,94034.0,0.51543029]
[1745812911848,0.00036244,94035.0,94034.0,0.51969129]
[1745812912852,0.00036244,94035.0,94034.0,0.69853026]
[1745812914116,0.00036244,94035.0,94034.0,0.79698178]
[1745812929910,0.00036244,94035.0,94034.0,0.90918178]
[1745812930110,0.00036244,94035.0,94034.0,0.79698178]
[1745812931250,0.00036244,94035.0,94034.0,0.70642178]
[1745812931456,0.00036244,94035.0,94034.0,0.79678178]
[1745812933142,0.00036244,94035.0,94034.0,0.87672945]
[1745812933522,0.00036244,94035.0,94034.0,0.87472945]
[1745812933926,0.00036244,94035.0,94034.0,0.87772945]
[1745812934327,0.00036244,94035.0,94034.0,0.87572945]
[1745812934648,6.186e-05,94041.0,94040.0,0.5672163]
[1745812934849,6.186e-05,94041.0,94040.0,0.67410644]
[1745812936280,6.186e-05,94041.0,94040.0,0.90394471]
[1745812939265,6.186e-05,94041.0,94040.0,1.02744689]
[1745812942265,6.186e-05,94041.0,94040.0,0.90394471]
[1745812942427,6.186e-05,94041.0,94040.0,0.99430471]
[1745812944085,6.186e-05,94041.0,94040.0,1.0221795]
[1745812945097,6.186e-05,94041.0,94040.0,1.0264405]
[1745812948427,6.186e-05,94041.0,94040.0,1.0284405]
[1745812948958,6.186e-05,94041.0,94040.0,1.0274405]
[1745812949173,6.186e-05,94041.0,94040.0,1.0294405]
[1745812950196,6.186e-05,94041.0,94040.0,1.0274405]
[1745812950590,6.186e-05,94041.0,94040.0,1.0304405]
[1745812950793,0.0502243,94071.0,94066.0,0.21261667]
[1745812951014,0.0502243,94071.0,94066.0,0.76653326]
[1745812951216,0.0502243,94071.0,94066.0,0.76440766]
[1745812952189,0.0502243,94071.0,94066.0,0.76454548]
[1745812952791,0.0502243,94071.0,94066.0,0.7762447]
[1745812953579,0.0502243,94071.0,94066.0,0.78428821]
[1745812954120,0.0502243,94071.0,94066.0,0.78528821]
[1745812954322,0.0495244,94067.0,94066.0,0.57267154]
[1745812954495,0.0495244,94067.0,94066.0,0.48231154]
[1745812954705,0.0495244,94067.0,94066.0,0.57267154]
[1745812959173,0.0995244,94067.0,94066.0,0.20743147]
[1745812959367,0.0995244,94067.0,94066.0,0.22197232]
[1745812959754,0.0995244,94067.0,94066.0,0.13061232]
[1745812959893,0.0995244,94067.0,94066.0,0.22137232]
[1745812960314,0.0995244,94067.0,94066.0,0.22037232]
[1745812962799,0.0995244,94067.0,94066.0,0.12961232]
[1745812962998,0.0995244,94067.0,94066.0,0.22037232]
[1745812963590,0.1005244,94067.0,94066.0,0.15903147]
[1745812963793,0.1005244,94067.0,94066.0,0.09089782]
[1745812964010,0.1005244,94067.0,94040.0,0.001]
[1745812964011,0.0934,94058.0,94040.0,0.001]
[1745812964173,0.0474,94057.0,94056.0,0.09076]
[1745812964375,0.0474,94057.0,94056.0,0.21219099]
[1745812964588,0.0474,94057.0,94056.0,0.19765014]
[1745812964787,0.0474,94057.0,94056.0,0.21219099]
[1745812964963,0.0474,94057.0,94056.0,0.19765014]
[1745812965391,0.0474,94057.0,94056.0,0.21219099]
[1745812965752,0.0956,94057.0,94056.0,0.22005019]
[1745812966634,0.0956,94057.0,94056.0,0.21219099]
[1745812969398,0.09072248,94057.0,94056.0,0.21219099]
[1745812970749,0.09072248,94057.0,94056.0,0.12143099]
[1745812977278,0.0478,94054.0,94053.0,0.01454085]
[1745812977493,0.0478,94054.0,94053.0,0.12143099]
[1745812978684,0.001,94054.0,94053.0,0.12143099]
[1745812979705,0.001,94058.0,94054.0,0.01454085]
[1745812979905,0.001,94058.0,94056.0,0.01454085]
[1745812980109,0.001,94058.0,94057.0,0.12143099]
[1745812981430,0.453,94066.0,94058.0,0.01454085]
[1745812981681,0.001,94062.0,94060.0,0.01454085]
[1745812981996,0.001,94062.0,94061.0,0.12143099]
[1745812984617,0.453,94066.0,94062.0,0.01454085]
[1745812984821,0.0014244,94067.0,94064.0,0.01454085]
[1745812985021,0.0014244,94067.0,94066.0,0.01454085]
[1745812985221,0.0014244,94067.0,94066.0,0.12143099]
[1745812987688,0.0014244,94067.0,94066.0,0.21219099]
[1745812991340,0.0004244,94067.0,94066.0,0.21195099]
[1745812991808,0.0004244,94067.0,94066.0,0.30977693]
[1745812992012,0.0004244,94067.0,94066.0,0.30765099]
[1745812994184,0.0004244,94067.0,94066.0,0.30865099]
[1745812994384,0.0004244,94067.0,94066.0,0.30965099]
[1745812994591,0.0004244,94067.0,94066.0,0.64965099]
[1745812994815,0.0004244,94067.0,94066.0,0.65065099]
[1745812995563,0.0004244,94067.0,94066.0,0.64965099]
[1745812995787,0.0004244,94067.0,94066.0,0.65065099]
[1745812995997,0.0004244,94067.0,94066.0,0.64965099]
[1745812996173,0.0004244,94067.0,94066.0,0.65165099]
[1745812999647,0.0004244,94067.0,94066.0,0.64965099]
[1745812999780,0.0004244,94067.0,94066.0,0.67140397]
[1745813000589,0.0004244,94067.0,94066.0,0.67040397]
[1745813001062,0.0004244,94067.0,94066.0,0.67140397]
[1745813002777,0.0004244,94067.0,94066.0,0.65165099]
[1745813018977,0.0004244,94067.0,94066.0,0.60445099]
[1745813019556,0.0004244,94067.0,94066.0,0.55595099]
[1745813035614,0.0004244,94067.0,94066.0,0.62081929]
[1745813037473,0.0004244,94067.0,94066.0,0.55595099]
[1745813038606,0.0004244,94067.0,94066.0,0.12543099]
[1745813038820,0.0004244,94067.0,94066.0,0.20273014]
[1745813039218,0.0004244,94067.0,94066.0,0.21939699]
[1745813039396,0.0004244,94067.0,94066.0,0.21727099]
[1745813039782,0.0004244,94067.0,94066.0,0.21527099]
[1745813039985,0.0004244,94067.0,94066.0,0.21427099]
[1745813041289,0.0004244,94067.0,94066.0,0.2163969]
[1745813041898,0.0004244,94067.0,94066.0,0.5563969]
[1745813042143,0.0004244,94067.0,94066.0,0.60187099]
[1745813044469,0.0004244,94067.0,94066.0,0.60287099]
[1745813046369,0.0004244,94067.0,94066.0,0.60187099]
[1745813046756,0.0004244,94067.0,94066.0,0.60287099]
[1745813047140,0.0004244,94067.0,94066.0,0.60187099]
[1745813047492,0.0004244,94067.0,94066.0,0.60287099]
[1745813051450,0.0004244,94067.0,94066.0,0.60187099]
[1745813061871,0.0004244,94067.0,94066.0,0.51003099]
[1745813062211,0.0004244,94067.0,94066.0,0.60091099]
[1745813063029,0.0004244,94067.0,94066.0,0.59991099]
[1745813063581,0.0004244,94067.0,94066.0,0.60091099]
[1745813064938,0.0004244,94067.0,94066.0,0.60191099]
[1745813065359,0.0004244,94067.0,94066.0,0.77974996]
[1745813065559,0.0004244,94067.0,94066.0,0.78074996]
[1745813068524,0.0004244,94067.0,94066.0,0.78500996]
[1745813071647,0.0004244,94067.0,94066.0,0.69412996]
[1745813071846,0.0004244,94067.0,94066.0,0.78500996]
[1745813072056,0.0004244,94067.0,94066.0,0.73740996]
[1745813078007,0.0004244,94067.0,94066.0,0.78440996]
[1745813083689,0.0004244,94067.0,94066.0,0.78436996]
[1745813084107,0.004,94069.0,94067.0,0.56715526]
[1745813084309,0.004,94069.0,94068.0,0.46355642]
[1745813084532,0.004,94069.0,94068.0,0.46143099]
[1745813085878,0.004,94069.0,94068.0,0.64026996]
[1745813086964,0.004,94069.0,94068.0,0.64226996]
[1745813091415,0.004,94069.0,94068.0,0.68796996]
[1745813099677,0.0004243,94079.0,94078.0,0.5671304]
[1745813099909,0.0004243,94079.0,94078.0,0.72272054]
[1745813100988,0.0004243,94079.0,94078.0,0.72276641]
[1745813103549,0.0004243,94079.0,94078.0,0.90160538]
[1745813103896,0.0004243,94079.0,94078.0,0.90949395]
[1745813110361,0.0015757,94085.0,94084.0,0.61711614]
[1745813110566,0.0004242,94104.0,94088.0,0.6644071]
[1745813110763,0.0024243,94089.0,94088.0,1.04197621]
[1745813113481,0.0024243,94089.0,94088.0,1.04497621]
[1745813113688,0.0024243,94089.0,94088.0,0.63172911]
[1745813113851,0.0024243,94089.0,94088.0,0.72356911]
[1745813114246,0.0024243,94089.0,94088.0,0.73810996]
[1745813114860,0.0024243,94089.0,94088.0,0.81794019]
[1745813115060,0.0024243,94089.0,94088.0,0.81494019]
[1745813115265,0.0024243,94089.0,94088.0,0.18972037]
[1745813115471,0.0034243,94089.0,94088.0,0.28136037]
[1745813115682,0.0034243,94089.0,94088.0,0.27836037]
[1745813116069,0.0034243,94089.0,94088.0,0.29490122]
[1745813116266,0.0034243,94089.0,94088.0,0.21307099]
[1745813116449,0.0034243,94089.0,94088.0,0.21507099]
[1745813116851,0.0034243,94089.0,94088.0,0.19853014]
[1745813119115,0.0034243,94089.0,94088.0,0.21307099]
[1745813122767,0.0034243,94089.0,94088.0,0.19853014]
[1745813122968,0.0970243,94089.0,94088.0,0.19853014]
[1745813123208,0.0970243,94089.0,94088.0,0.21307099]
[1745813123726,0.0980243,94089.0,94088.0,0.19853014]
[1745813124272,0.0980243,94089.0,94088.0,0.21307099]
[1745813125279,0.0990243,94089.0,94088.0,0.21307099]
[1745813125719,0.0990243,94089.0,94088.0,0.12143099]
[1745813131611,0.0990243,94089.0,94088.0,0.13321621]
[1745813139959,0.0980243,94089.0,94088.0,0.13321621]
[1745813140174,0.0054243,94089.0,94088.0,0.13321621]
[1745813140333,0.0044243,94089.0,94088.0,0.13321621]
[1745813141347,0.0054243,94089.0,94088.0,0.13321621]
[1745813141553,0.0044243,94089.0,94088.0,0.13321621]
[1745813142128,0.0054243,94089.0,94088.0,0.13321621]
[1745813147797,0.0044243,94089.0,94088.0,0.13321621]
[1745813148485,0.0054243,94089.0,94088.0,0.13321621]
[1745813148688,0.0034243,94089.0,94088.0,0.13321621]
[1745813149048,0.0054243,94089.0,94088.0,0.13321621]
[1745813149569,0.0539243,94089.0,94088.0,0.01178522]
[1745813149775,0.001,94079.0,94078.0,4.587e-05]
[1745813149967,0.0481,94079.0,94078.0,4.587e-05]
[1745813150362,0.8402,94079.0,94078.0,4.587e-05]
[1745813150652,0.34,94074.0,94065.0,0.09092]
[1745813150865,0.34,94074.0,94061.0,0.41020587]
[1745813151052,0.34,94074.0,94062.0,0.10689014]
[1745813151257,0.34,94074.0,94063.0,0.01454085]
[1745813151469,0.34,94074.0,94063.0,0.12143099]
[1745813151634,0.1882587,94073.0,94063.0,0.10689014]
[1745813152274,0.001,94065.0,94064.0,0.12143099]
[1745813153679,0.002,94065.0,94064.0,0.12143099]
[1745813153877,0.002,94065.0,94064.0,0.13125048]
[1745813154833,0.003,94065.0,94064.0,0.13125048]
[1745813157077,0.002,94065.0,94064.0,0.13125048]
[1745813159466,0.002,94065.0,94064.0,0.13225048]
[1745813160234,0.001,94085.0,94064.0,0.13225048]
[1745813160442,0.001,94065.0,94064.0,0.02536034]
[1745813160630,0.001,94065.0,94064.0,0.13225048]
[1745813160832,0.001,94084.0,94064.0,0.13225048]
[1745813161029,0.001,94084.0,94073.0,0.01454085]
[1745813161169,0.001,94084.0,94075.0,0.01454085]
[1745813161376,0.001,94084.0,94077.0,0.01454085]
[1745813161601,0.001,94084.0,94079.0,0.01454085]
[1745813161819,0.001,94084.0,94081.0,0.01454085]
[1745813162018,0.001,94084.0,94083.0,0.01454085]
[1745813162228,0.001,94084.0,94083.0,0.12143099]
[1745813162425,0.001,94084.0,94083.0,0.13117778]
[1745813162573,0.005,94084.0,94083.0,0.13117778]
[1745813162775,0.001,94084.0,94083.0,0.13117778]
[1745813162977,0.001,94085.0,94083.0,0.13117778]
[1745813163189,0.005,94084.0,94083.0,0.02428764]
[1745813163388,0.005,94084.0,94083.0,0.13117778]
[1745813163623,0.004,94084.0,94083.0,0.13117778]
[1745813163824,0.006,94084.0,94083.0,0.13117778]
[1745813164445,0.002,94084.0,94083.0,0.13117778]
[1745813164984,0.005,94084.0,94083.0,0.13117778]
[1745813167265,0.004,94084.0,94083.0,0.13117778]
[1745813168051,0.001,94084.0,94083.0,0.13117778]
[1745813168254,0.004,94084.0,94083.0,0.13117778]
[1745813168694,0.001,94084.0,94083.0,0.13117778]
[1745813168907,0.004,94084.0,94083.0,0.13117778]
[1745813169111,0.003,94084.0,94083.0,0.13117778]
[1745813169251,0.004,94084.0,94083.0,0.13117778]
[1745813169917,0.003,94084.0,94083.0,0.13117778]
[1745813170131,0.004,94084.0,94083.0,0.13117778]
[1745813170714,0.003,94084.0,94083.0,0.13117778]
[1745813170907,0.001,94084.0,94083.0,0.13117778]
[1745813171315,0.004,94084.0,94083.0,0.13117778]
[1745813171634,0.001,94084.0,94083.0,0.13117778]
[1745813171833,0.004,94084.0,94083.0,0.13117778]
[1745813172233,0.003,94084.0,94083.0,0.13117778]
[1745813172442,0.004,94084.0,94083.0,0.13117778]
[1745813192881,0.004,94084.0,94083.0,0.11060402]
[1745813193042,0.004,94084.0,94083.0,0.10806519]
[1745813193238,0.004,94084.0,94083.0,0.11116009]
[1745813193672,0.004,94084.0,94083.0,0.0965822]
[1745813193872,0.004,94084.0,94083.0,0.09434765]
[1745813194839,0.004,94084.0,94083.0,0.1088885]
[1745813198342,0.02395126,94084.0,94083.0,0.1088885]
[1745813199809,0.02395126,94084.0,94083.0,0.09434765]
[1745813200983,0.02395126,94084.0,94083.0,0.1088885]
[1745813202540,0.004,94084.0,94083.0,0.1088885]
[1745813203335,0.004,94084.0,94083.0,0.09434765]
[1745813207739,0.004,94084.0,94083.0,0.1088885]
[1745813213061,0.005,94084.0,94083.0,0.1088885]
[1745813213265,0.005,94084.0,94083.0,0.00811617]
[1745813213266,0.0526,94084.0,94083.0,0.00811617]
[1745813213469,0.0526,94084.0,94078.0,0.09048]
[1745813213470,0.06302243,94084.0,94066.0,0.06484842]
[1745813213687,0.06302243,94084.0,94083.0,0.0065019]
[1745813213886,0.06302243,94084.0,94074.0,0.01454085]
[1745813214089,0.06302243,94084.0,94083.0,0.0065019]
[1745813214297,0.06302243,94084.0,94076.0,0.01454085]
[1745813214479,0.06202243,94084.0,94083.0,0.0065019]
[1745813214657,0.06202243,94084.0,94078.0,0.01454085]
[1745813214658,0.06302243,94084.0,94078.0,0.01454085]
[1745813214853,0.06302243,94084.0,94080.0,0.01454085]
[1745813215264,0.01994022,94083.0,94081.0,0.00654079]
[1745813215482,0.01994022,94083.0,94079.0,0.01454085]
[1745813215682,0.01994022,94083.0,94080.0,0.00654129]
[1745813215924,0.06302243,94084.0,94080.0,0.00654129]
[1745813215925,0.01994022,94082.0,94080.0,0.00654129]
[1745813216464,0.01994022,94081.0,94080.0,0.00654129]
[1745813217437,0.02094022,94081.0,94080.0,0.00654129]
[1745813217636,0.02094022,94081.0,94074.0,0.01454085]
[1745813217749,0.02094022,94081.0,94076.0,0.01454085]
[1745813217955,0.01994022,94080.0,94078.0,0.01454085]
[1745813218152,0.01994022,94080.0,94079.0,0.00655408]
[1745813218406,0.01994022,94080.0,94079.0,0.01454085]
[1745813218628,0.01994022,94080.0,94079.0,0.02109493]
[1745813219512,0.02494022,94080.0,94079.0,0.02109493]
[1745813220609,0.02094022,94080.0,94079.0,0.02109493]
[1745813220809,0.02194022,94080.0,94079.0,0.02109493]
[1745813221039,0.02594022,94080.0,94079.0,0.02109493]
[1745813221240,0.02494022,94080.0,94079.0,0.02109493]
[1745813221442,0.02594022,94080.0,94079.0,0.02109493]
[1745813221645,0.05259654,94080.0,94079.0,0.00655408]
[1745813221871,0.001,94074.0,94073.0,0.09048]
[1745813222473,0.02094022,94074.0,94073.0,0.09048]
[1745813223557,0.02094022,94074.0,94073.0,0.09607613]
[1745813224066,0.02494022,94074.0,94073.0,0.09607613]
[1745813225133,0.02794022,94074.0,94073.0,0.09607613]
[1745813232464,0.41304022,94074.0,94073.0,0.00559613]
[1745813232665,0.001,94062.0,94061.0,4.587e-05]
[1745813232872,0.001,94062.0,94061.0,0.00476263]
[1745813233333,0.02094022,94062.0,94061.0,0.00476263]
[1745813233901,0.02094022,94062.0,94061.0,4.587e-05]
[1745813234690,0.02594022,94062.0,94061.0,4.587e-05]
[1745813235526,0.02594022,94062.0,94061.0,0.00476263]
[1745813235770,0.02594022,94062.0,94061.0,4.587e-05]
[1745813235914,0.03678211,94062.0,94061.0,0.00476263]
[1745813236130,0.03678211,94062.0,94061.0,4.587e-05]
[1745813236335,0.03678211,94062.0,94061.0,0.00476263]
[1745813236572,0.03678211,94062.0,94061.0,4.587e-05]
[1745813236804,0.03678211,94062.0,94061.0,0.00476263]
[1745813237010,0.03678211,94062.0,94061.0,4.587e-05]
[1745813237214,0.03678211,94062.0,94061.0,0.00476263]
[1745813237430,0.03678211,94062.0,94061.0,4.587e-05]
[1745813237601,0.03678211,94062.0,94061.0,0.00476263]
[1745813237830,0.02594022,94062.0,94061.0,4.587e-05]
[1745813238011,0.02594022,94062.0,94061.0,0.12619362]
[1745813238221,0.006,94062.0,94061.0,0.12147686]
[1745813238453,0.006,94062.0,94061.0,0.12623384]
[1745813240857,0.02594022,94062.0,94061.0,0.12623384]
[1745813242746,0.02294022,94062.0,94061.0,0.12623384]
[1745813243107,0.02194022,94062.0,94061.0,0.12623384]
[1745813243278,0.02194022,94062.0,94061.0,0.12743756]
[1745813246290,0.02094022,94062.0,94061.0,0.12743756]
[1745813255193,0.02194022,94062.0,94061.0,0.12743756]
[1745813255397,0.02094022,94062.0,94061.0,0.12743756]
[1745813255593,0.02194022,94062.0,94061.0,0.12743756]
[1745813255918,0.02094022,94062.0,94061.0,0.12743756]
[1745813256222,0.02194022,94062.0,94061.0,0.12743756]
[1745813258110,0.02194022,94062.0,94061.0,0.00600657]
[1745813258783,0.03010546,94062.0,94061.0,0.00600657]
[1745813259194,0.03010546,94062.0,94061.0,4.587e-05]
[1745813259527,0.03010546,94062.0,94061.0,0.00603889]
[1745813259726,0.02194022,94062.0,94061.0,0.00603889]
[1745813271711,0.02194022,94062.0,94061.0,4.587e-05]
[1745813273897,0.02194022,94062.0,94061.0,0.00407935]
[1745813274116,0.02194022,94062.0,94061.0,4.587e-05]
[1745813274554,0.02194022,94062.0,94061.0,0.00412005]
[1745813274777,0.02194022,94062.0,94061.0,4.587e-05]
[1745813275018,0.02194022,94062.0,94061.0,0.0186609]
[1745813275235,0.02194022,94062.0,94061.0,0.01458672]
[1745813275449,0.02194022,94062.0,94061.0,0.0186609]
[1745813275658,0.02194022,94062.0,94061.0,0.12555104]
[1745813276916,0.02094022,94062.0,94061.0,0.12555104]
[1745813285717,0.001,94062.0,94061.0,0.12555104]
[1745813286148,0.001,94062.0,94061.0,0.12755104]
[1745813287395,0.001,94062.0,94061.0,0.13055104]
[1745813288544,0.001,94062.0,94061.0,0.13250371]
[1745813288930,0.001,94062.0,94061.0,0.12647686]
[1745813289782,0.02092496,94062.0,94061.0,0.12647686]
[1745813293620,0.001,94062.0,94061.0,0.12647686]
[1745813296307,0.001,94067.0,94061.0,0.12647686]
[1745813296515,0.001,94075.0,94064.0,0.01454085]
[1745813296721,0.001,94075.0,94066.0,0.01454085]
[1745813296921,0.01992161,94074.0,94068.0,0.01454085]
[1745813297097,0.01992161,94074.0,94070.0,0.01454085]
[1745813297272,0.01992161,94073.0,94072.0,0.01454085]
[1745813297479,0.01992161,94073.0,94072.0,0.12143099]
[1745813298970,0.01992161,94073.0,94072.0,0.12343099]
[1745813300242,0.01992161,94073.0,94072.0,0.12443099]
[1745813302347,0.001,94075.0,94072.0,0.12443099]
[1745813302544,0.001,94075.0,94074.0,0.01454085]
[1745813302784,0.001,94075.0,94074.0,0.12143099]
[1745813303189,0.02091933,94075.0,94074.0,0.12143099]
[1745813303779,0.02091933,94075.0,94074.0,0.12343099]
[1745813306069,0.02091933,94075.0,94074.0,0.12543099]
[1745813306712,0.02091933,94075.0,94074.0,0.1335868]
[1745813310133,0.02091933,94075.0,94074.0,0.1315868]
[1745813310416,0.02091933,94075.0,94074.0,0.1295868]
[1745813310791,0.02091933,94075.0,94074.0,0.1315868]
[1745813311540,0.02091933,94075.0,94074.0,0.1325868]
[1745813316267,0.02091933,94075.0,94074.0,0.12443099]
[1745813318564,0.01991933,94075.0,94074.0,0.12443099]
[1745813318818,0.01991933,94075.0,94074.0,0.17363099]
[1745813319797,0.001,94079.0,94074.0,0.17363099]
[1745813320024,0.001,94079.0,94076.0,0.01454085]
[1745813320223,0.001,94079.0,94078.0,0.01454085]
[1745813320429,0.001,94079.0,94078.0,0.12143099]
[1745813321323,0.001,94079.0,94078.0,0.12243099]
[1745813329413,0.00974463,94086.0,94078.0,0.12243099]
[1745813329618,0.0024243,94089.0,94080.0,0.01454085]
[1745813329822,0.0024243,94089.0,94082.0,0.01454085]
[1745813329996,0.0024243,94089.0,94084.0,0.01454085]
[1745813330199,0.0024243,94089.0,94086.0,0.01454085]
[1745813330553,0.0024243,94089.0,94086.0,0.12143099]
[1745813330906,0.0034243,94089.0,94086.0,0.12143099]
[1745813331140,0.01404641,94089.0,94086.0,0.12143099]
[1745813331351,0.34,94087.0,94086.0,0.12143099]
[1745813332957,0.341,94087.0,94086.0,0.12143099]
[1745813333647,0.341,94087.0,94086.0,0.11819262]
[1745813334181,0.342,94087.0,94086.0,0.11819262]
[1745813340840,0.342,94087.0,94077.0,0.0904]
[1745813341048,0.342,94087.0,94078.0,0.10689014]
[1745813341258,0.46547197,94087.0,94078.0,0.10689014]
[1745813342441,0.46447197,94087.0,94078.0,0.10689014]
[1745813342595,0.46547197,94087.0,94078.0,0.10689014]
[1745813342799,0.46447197,94087.0,94079.0,0.01454085]
[1745813343002,0.46447197,94087.0,94081.0,0.01454085]
[1745813343205,0.46447197,94087.0,94083.0,0.01454085]
[1745813343402,0.46547197,94087.0,94085.0,0.01454085]
[1745813343924,0.46447197,94087.0,94085.0,0.01454085]
[1745813344123,0.342,94087.0,94085.0,0.01454085]
[1745813344555,0.342,94087.0,94077.0,0.0904]
[1745813344556,0.342,94087.0,94086.0,0.12143099]
[1745813344761,0.34,94087.0,94086.0,0.12143099]
[1745813345185,0.342,94087.0,94086.0,0.12143099]
[1745813345392,0.341,94087.0,94086.0,0.12143099]
[1745813345911,0.342,94087.0,94086.0,0.12143099]
[1745813346370,0.341,94087.0,94086.0,0.12143099]
[1745813346565,0.34,94087.0,94086.0,0.12143099]
[1745813346776,0.341,94087.0,94086.0,0.12143099]
[1745813348160,0.34,94087.0,94086.0,0.12143099]
[1745813354399,0.01304641,94089.0,94079.0,0.01454085]
[1745813354538,0.34,94088.0,94081.0,0.01454085]
[1745813354737,0.34,94088.0,94083.0,0.01454085]
[1745813354938,0.34,94088.0,94083.0,0.12143099]
[1745813355776,0.342,94088.0,94083.0,0.12143099]
[1745813356353,0.01993775,94087.0,94083.0,0.12143099]
[1745813357191,0.01993775,94086.0,94083.0,0.12143099]
[1745813357656,0.01993775,94086.0,94077.0,0.00600082]
[1745813357828,0.342,94088.0,94077.0,0.00600082]
[1745813357829,0.01993775,94085.0,94077.0,0.00600082]
[1745813358176,0.01993775,94084.0,94077.0,0.00600082]
[1745813358598,0.01993775,94083.0,94077.0,0.00600082]
[1745813359006,0.01993775,94082.0,94077.0,0.00600082]
[1745813359409,0.01993775,94081.0,94077.0,0.00600082]
[1745813360227,0.34,94079.0,94077.0,0.00600082]
[1745813360655,0.01993775,94078.0,94077.0,0.00600082]
[1745813360976,0.01993775,94078.0,94066.0,0.01454085]
[1745813361292,0.34,94075.0,94068.0,0.01454085]
[1745813361508,0.34,94075.0,94070.0,0.01454085]
[1745813361696,0.01993775,94074.0,94067.0,0.0904]
[1745813361896,0.34,94072.0,94068.0,0.01454085]
[1745813362100,0.34,94070.0,94067.0,0.0904]
[1745813362299,0.34,94068.0,94067.0,0.0904]